Workbook

Sheet лист1
A3: Свод изменений к проекту решения Совета народных депутатов "О внесении изменений в решение "О бюджете муниципального образования Красносельское на 2017 год"
H4: тыс. рублей
A5: Показатели | B5: Бюджетные назначения на 1 января 2017 г. (Решение СНД №29 от 21.12.2016г.) | C5: Бюджетные назначения на 28 июня 2017г. (Решение СНД №25 от 28.06.2017г.) | D5: Изменения, предусмотренные проектом решения | G5: Бюджетные назначения с учетом проекта решения | H5: Примечание
D6: Увеличение (+) | E6: Уменьшение (-) | F6: Всего
A7: 1 | B7: 2 | C7: 3 | D7: 4 | E7: 5 | F7: 6 | G7: 7 | H7: 8
A8: ДОХОДЫ БЮДЖЕТА | B8: =B23 -> 28386.2 | C8: =C9+C22 -> 28923.9 | D8: =D9+D22 -> 1533.2 | E8: =E9+E22 -> 0 | F8: =F9+F22 -> 1533.2 | G8: =G9+G22 -> 30457.1
A9: НАЛОГОВЫЕ И НЕНАЛОГОВЫЕ ДОХОДЫ | B9: 17308 | C9: =C10+C12+C13+C14+C16+C17 -> 17308 | D9: =D10+D12+D13+D14+D16+D17 -> 1262.4 | E9: =E10 -> 0 | F9: =F10+F12+F13+F14+F16+F17 -> 1262.4 | G9: =G10+G12+G13+G14+G16+G17 -> 18570.4
A10: Налог на доходы физических лиц | B10: 1400 | C10: 1400 | E10: 0 | F10: =D10-E10 -> 0 | G10: 1400
A11: Единый налог на вмененный доход
A12: Единый сельскохозяйственный налог | B12: 14 | C12: 14 | G12: 14
A13: Налог на имущество физических лиц | B13: 640 | C13: 640 | G13: 640
A14: Земельный налог | B14: 14479 | C14: 14479 | G14: 14479
A15: Налог на добычу полезных ископаемых | G15: =C15+F15 -> 0
A16: Прочие налоговые доходы | B16: 10 | C16: 10 | G16: 10
A17: Неналоговые доходы, из них | B17: 765 | C17: 765 | D17: =D18+D19+D20 -> 1262.4 | F17: =F18+F19+F20 -> 1262.4 | G17: =G18+G19+G20 -> 2027.4
A18: доходы от использования имущества, находящегося в государственной и муниципальной собственности | B18: 750 | C18: 750 | G18: 750
A19: штрафы, санкции, возмещение ущерба | B19: 15 | C19: 15 | G19: 15
A20: доходы от продажи материальных и нематериальных активов | D20: 1262.4 | F20: 1262.4 | G20: 1262.4 | H20: 153,7 тыс.руб. - Доходы от продажи транспортного средства 1108,7 тыс.руб. - Доходы от продажи земельных участков, находящихся в собственности МО Красносельское
A21: Средства от возврата остатков субсидий, субвенций и иных межбюджетных трансфертов
A22: БЕЗВОЗМЕЗДНЫЕ ПОСТУПЛЕНИЯ | B22: 11078.2 | C22: 11615.9 | D22: 270.8 | E22: 0 | F22: =D22-E22 -> 270.8 | G22: 11886.7 | H22: 50,0тыс.руб.- Безвозмездные поступления из областного бюджета. Уведомление ДФБНП администрации Владимирской области №592037_19 от 26.06.2017г. 220,8тыс.руб.-Добровольные пожертвования на объекты благоустройства
A23: ИТОГО ДОХОДОВ | B23: =B22+B9 -> 28386.2 | C23: 28923.9 | D23: 1533.2 | E23: 0 | F23: 1533.2 | G23: 30457.1
A25: РАСХОДЫ БЮДЖЕТА | B25: =B26+B29+B40 -> 28386.2 | C25: =C26+C29+C40 -> 28923.9 | D25: =D26+D29+D40 -> 936 | E25: =E26+E29+E40 -> 31.5 | F25: 904.5 | G25: =G26+G29+G40 -> 29828.4
A26: Раздел I. Социально-значимые расходы | B26: =B27+B28 -> 7463.9 | C26: =C27+C28 -> 7429.9 | G26: =G27+G28 -> 7429.9
A27: Заработная плата и начисления на нее (ВР 111,119,121,129) | B27: 7413.9 | C27: 7379.9 | G27: 7379.9
A28: Социальное обеспечение (ВР 300) | B28: 50 | C28: 50 | G28: 50
A29: Раздел II. Первоочередные расходы | B29: =B30+B31+B32+B35+B36+B38 -> 20922.3 | C29: =C30+C31+C32+C35+C36+C38 -> 21494 | D29: =D30+D31+D32+D35+D36+D38 -> 936 | E29: =E30+E31+E32+E35+E36+E38 -> 31.5 | G29: =G30+G31+G32+G35+G36+G38 -> 22398.5
A30: Расходы на обслуживание муниципального долга (ВР 730)
A31: Межбюджетные трансферты общего характера бюджетам бюджетной системы Российской Федерации (ВР 500) | B31: 9643.7 | C31: 9823.1 | D31: 230 | E31: 31.5 | F31: 198.5 | G31: 10021.6 | H31: 230,0тыс.руб.на обеспечение деятельности ДК по переданным полномочиям МО Юрьев-Польский район 31,5тыс.руб.- уменьшение социальной выплаты на приобретение жилья по переданным полномочиям МО Юрьев-Польский район. Постановление администрации МО Юрьев-Польский район №761 от 20.06.2017г.
A32: Расходы на первоочередные нужды, из них:
A33: прочие выплаты по заработной плате (ВР 112,122)
A34: иные выплаты персоналу, за исключением фонда оплаты труда (ВР 142)
A35: Иные закупки товаров, работ и услуг для обеспечения муниципальных нужд (ВР 240) | B35: 10758.6 | C35: 11142.4 | D35: 706 | G35: 11848.4 | H35: 100,0тыс.руб.- расходы на расчистку водоема и береговой полосы с.Федосьино 200,0тыс.руб.-увеличены расходы на вывоз мусора с мест несанкционированного размещения отходов 200,2тыс.руб- увеличены расходы на спилку деревьев и обкос травы 200,0тыс.руб.- увеличены расходы на ремонт уличного освещения 5,8тыс.руб.- увеличены расходы на строительство детской площадки с.Ополье
A36: Иные бюджетные ассигнования (ВР 810,851,852,853) | B36: 290 | C36: 298.5 | G36: 298.5
A37: Расходы на прочие нужды, из них:
A38: Предоставление субсидий бюджетным, автономным учреждениям и иным некоммерческим организациям (ВР 600) | B38: 230 | C38: 230 | G38: 230
A40: Раздел III. Расходы
A41: Увеличение стоимости основных средств ВР 400)
A42: Другие расходы ВР 113,123,831,870)
A43: ИТОГО РАСХОДОВ | B43: =B25 -> 28386.2 | C43: =C25 -> 28923.9 | G43: 25588.6
A44: Справочно: на 01.07.2017г. Штатная численность составила 5 ед., фактическая - 5ед.
A45: Расходы на выплату заработной платы с начислениями работникам органов местного самоуправления | B45: 2259.8 | C45: 2259.8 | G45: 2259.8
A47: Профицит (+)/дефицит (-) | B47: =B8-B25 -> 0 | C47: =C8-C25 -> 0 | G47: =G8-G25 -> 628.7
A48: ИСТОЧНИКИ ФИНАНСИРОВАНИЯ ДЕФИЦИТА БЮДЖЕТА
A49: Итого источников | G49: -628.7
A50: Изменение остатков средств бюджетов | G50: -628.7
A51: Разница между полученными и погашенными кредитами от других бюджетов
A52: - получение бюджетных кредитов
A53: - погашение бюджетных кредитов
A54: Разница меду полученными и погашенными кредитами от кредитных организаций
A55: - получение кредитов от кредитных организаций
A56: - погашение кредитов от кредитных организаций
A57: Иные источники
